[Event "Early-Titled-Tuesday-Blitz-September-12-2023"]
[Site "Chess.com"]
[Date "2023.09.12"]
[Round "2"]
[White "Ermito2020"]
[Black "Arash_Tahbaz"]
[Result "0-1"]
[WhiteElo "2543"]
[BlackElo "2833"]
[TimeControl "180+1"]
[EndTime "8:20:13 PDT"]
[Termination "Arash_Tahbaz won by checkmate"]

1. e4 {[%clk 0:03:00.9]} 1... g6 {[%clk 0:03:00.9]} 2. d4 {[%clk 0:03:00.6]}
2... Bg7 {[%clk 0:03:00.7]} 3. Nc3 {[%clk 0:03:01.3]} 3... d6 {[%clk 0:03:00.9]}
4. Be3 {[%clk 0:03:00.7]} 4... Nd7 {[%clk 0:02:59.9]} 5. Qd2 {[%clk 0:02:58.9]}
5... a6 {[%clk 0:03:00.3]} 6. h4 {[%clk 0:02:58.1]} 6... h6 {[%clk 0:03:00.1]}
7. O-O-O {[%clk 0:02:52.7]} 7... b5 {[%clk 0:02:59.3]} 8. h5 {[%clk 0:02:50.2]}
8... g5 {[%clk 0:02:59.3]} 9. f4 {[%clk 0:02:50.7]} 9... gxf4 {[%clk 0:03:00.2]}
10. Bxf4 {[%clk 0:02:51.6]} 10... Bb7 {[%clk 0:03:00.3]} 11. Qe3 {[%clk
0:02:40.3]} 11... Nb6 {[%clk 0:02:20]} 12. Bd3 {[%clk 0:02:04.9]} 12... Nf6
{[%clk 0:02:16.5]} 13. Nge2 {[%clk 0:01:52.6]} 13... Rc8 {[%clk 0:02:09.3]} 14.
Ng3 {[%clk 0:01:42.9]} 14... e6 {[%clk 0:02:07.7]} 15. d5 {[%clk 0:01:41.3]}
15... e5 {[%clk 0:01:58.9]} 16. Nf5 {[%clk 0:01:40.7]} 16... exf4 {[%clk
0:01:59.1]} 17. Qxf4 {[%clk 0:01:39.9]} 17... Kf8 {[%clk 0:01:46.1]} 18. Rdf1
{[%clk 0:01:39.6]} 18... Nbd7 {[%clk 0:01:33.2]} 19. g4 {[%clk 0:01:24.9]} 19...
Ne5 {[%clk 0:01:22]} 20. g5 {[%clk 0:01:19.7]} 20... hxg5 {[%clk 0:01:17.4]} 21.
Qxg5 {[%clk 0:01:20.6]} 21... Ne8 {[%clk 0:01:17.6]} 22. Qg3 {[%clk 0:01:14.1]}
22... Bh6+ {[%clk 0:01:14.8]} 23. Nxh6 {[%clk 0:01:04.3]} 23... Rxh6 {[%clk
0:01:14.1]} 24. Rhg1 {[%clk 0:01:05.2]} 24... Rxh5 {[%clk 0:01:04.7]} 25. Qg8+
{[%clk 0:01:03]} 25... Ke7 {[%clk 0:01:05.2]} 26. Be2 {[%clk 0:01:03.7]} 26...
Nf6 {[%clk 0:01:04.4]} 27. Qxd8+ {[%clk 0:00:59.7]} 27... Rxd8 {[%clk
0:01:05.3]} 28. Rxf6 {[%clk 0:01:00.3]} 28... Kxf6 {[%clk 0:00:59.1]} 29. Bxh5
{[%clk 0:01:00.4]} 29... Rh8 {[%clk 0:01:00]} 30. Be2 {[%clk 0:00:58.4]} 30...
Rh2 {[%clk 0:00:59.4]} 31. a3 {[%clk 0:00:57.8]} 31... Bc8 {[%clk 0:00:58]} 32.
Rf1+ {[%clk 0:00:57.7]} 32... Kg5 {[%clk 0:00:51.8]} 33. Kd2 {[%clk 0:00:56.1]}
33... Nc4+ {[%clk 0:00:50.2]} 34. Kc1 {[%clk 0:00:55.4]} 34... Ne5 {[%clk
0:00:50.3]} 35. b3 {[%clk 0:00:46.6]} 35... f5 {[%clk 0:00:49.7]} 36. Rg1+
{[%clk 0:00:42.9]} 36... Kf4 {[%clk 0:00:49.3]} 37. Rg8 {[%clk 0:00:42.8]} 37...
Bd7 {[%clk 0:00:47.6]} 38. exf5 {[%clk 0:00:42.7]} 38... Bxf5 {[%clk 0:00:47.8]}
39. Rf8 {[%clk 0:00:41.6]} 39... Kg5 {[%clk 0:00:37.8]} 40. Rg8+ {[%clk
0:00:41.5]} 40... Kf6 {[%clk 0:00:37.5]} 41. Rf8+ {[%clk 0:00:41.5]} 41... Kg6
{[%clk 0:00:31.8]} 42. Rg8+ {[%clk 0:00:41]} 42... Kf6 {[%clk 0:00:25.2]} 43.
Ra8 {[%clk 0:00:41.9]} 43... Bg4 {[%clk 0:00:19.9]} 44. Bxg4 {[%clk 0:00:41.4]}
44... Nxg4 {[%clk 0:00:20.8]} 45. Rxa6 {[%clk 0:00:39.7]} 45... Ne3 {[%clk
0:00:21.5]} 46. Nxb5 {[%clk 0:00:39.6]} 46... Rxc2+ {[%clk 0:00:21.3]} 47. Kb1
{[%clk 0:00:40.3]} 47... Rc5 {[%clk 0:00:20.9]} 48. a4 {[%clk 0:00:36.1]} 48...
Nxd5 {[%clk 0:00:21.2]} 49. Ra7 {[%clk 0:00:36]} 49... Ke5 {[%clk 0:00:18.3]}
50. Kb2 {[%clk 0:00:35.9]} 50... c6 {[%clk 0:00:16.6]} 51. Rd7 {[%clk
0:00:33.6]} 51... cxb5 {[%clk 0:00:15.8]} 52. a5 {[%clk 0:00:34.2]} 52... b4
{[%clk 0:00:15.7]} 53. Ra7 {[%clk 0:00:32.9]} 53... Kd4 {[%clk 0:00:12.4]} 54.
a6 {[%clk 0:00:32.7]} 54... Ra5 {[%clk 0:00:12.6]} 55. Ra8 {[%clk 0:00:32.1]}
55... Nc7 {[%clk 0:00:12.6]} 56. Rd8 {[%clk 0:00:30.9]} 56... Rxa6 {[%clk
0:00:12.6]} 57. Rb8 {[%clk 0:00:31.6]} 57... Nd5 {[%clk 0:00:12.7]} 58. Rh8
{[%clk 0:00:31.7]} 58... Kc5 {[%clk 0:00:12.7]} 59. Rh4 {[%clk 0:00:32.6]} 59...
Ra7 {[%clk 0:00:12.5]} 60. Rc4+ {[%clk 0:00:32.7]} 60... Kb5 {[%clk 0:00:13.1]}
61. Rd4 {[%clk 0:00:33.6]} 61... Kc5 {[%clk 0:00:13.2]} 62. Rc4+ {[%clk
0:00:34]} 62... Kb6 {[%clk 0:00:13.7]} 63. Rd4 {[%clk 0:00:34.3]} 63... Kc6
{[%clk 0:00:14.3]} 64. Rc4+ {[%clk 0:00:34.8]} 64... Kd7 {[%clk 0:00:14.9]} 65.
Rd4 {[%clk 0:00:35.1]} 65... Ke6 {[%clk 0:00:14.8]} 66. Re4+ {[%clk 0:00:35.7]}
66... Kf5 {[%clk 0:00:15.4]} 67. Rd4 {[%clk 0:00:35.5]} 67... Ke5 {[%clk
0:00:16]} 68. Rh4 {[%clk 0:00:36.1]} 68... Rb7 {[%clk 0:00:16.3]} 69. Rh5+
{[%clk 0:00:36.5]} 69... Kd4 {[%clk 0:00:16.9]} 70. Rh4+ {[%clk 0:00:37.1]}
70... Kc5 {[%clk 0:00:17.4]} 71. Rc4+ {[%clk 0:00:37.6]} 71... Kb5 {[%clk
0:00:18]} 72. Rd4 {[%clk 0:00:37.9]} 72... Kc6 {[%clk 0:00:18.2]} 73. Rc4+
{[%clk 0:00:37.4]} 73... Kd7 {[%clk 0:00:18.8]} 74. Re4 {[%clk 0:00:37.2]} 74...
Nc3 {[%clk 0:00:18.9]} 75. Rh4 {[%clk 0:00:35]} 75... d5 {[%clk 0:00:18.2]} 76.
Kc2 {[%clk 0:00:35.6]} 76... Kd6 {[%clk 0:00:18.7]} 77. Kd3 {[%clk 0:00:35.2]}
77... Rg7 {[%clk 0:00:18.5]} 78. Rxb4 {[%clk 0:00:33.7]} 78... Rg3+ {[%clk
0:00:17.8]} 79. Kc2 {[%clk 0:00:31.3]} 79... Kc5 {[%clk 0:00:16.4]} 80. Rb8
{[%clk 0:00:29.9]} 80... Nb5 {[%clk 0:00:15.6]} 81. Rc8+ {[%clk 0:00:29.3]}
81... Kb4 {[%clk 0:00:15.6]} 82. Rb8 {[%clk 0:00:29.1]} 82... Rc3+ {[%clk
0:00:15]} 83. Kd2 {[%clk 0:00:28.5]} 83... Rxb3 {[%clk 0:00:15.6]} 84. Rd8
{[%clk 0:00:28.5]} 84... d4 {[%clk 0:00:16]} 85. Rd7 {[%clk 0:00:28.9]} 85...
Kc4 {[%clk 0:00:16]} 86. Rd8 {[%clk 0:00:28.5]} 86... Rb2+ {[%clk 0:00:16.1]}
87. Kc1 {[%clk 0:00:27.9]} 87... Rh2 {[%clk 0:00:17]} 88. Rc8+ {[%clk
0:00:27.9]} 88... Kd3 {[%clk 0:00:16.5]} 89. Rb8 {[%clk 0:00:28.8]} 89... Nc3
{[%clk 0:00:15.5]} 90. Rb2 {[%clk 0:00:22.2]} 90... Rh1# {[%clk 0:00:14.1]} 0-1

[Event "Early-Titled-Tuesday-Blitz-September-12-2023"]
[Site "Chess.com"]
[Date "2023.09.12"]
[Round "2"]
[White "Cambek64"]
[Black "KNVB"]
[Result "0-1"]
[WhiteElo "2523"]
[BlackElo "2764"]
[TimeControl "180+1"]
[EndTime "8:20:21 PDT"]
[Termination "KNVB won by resignation"]

1. d4 {[%clk 0:02:52.6]} 1... Nf6 {[%clk 0:02:58.4]} 2. Nf3 {[%clk 0:02:49.2]}
2... e6 {[%clk 0:02:53]} 3. Bg5 {[%clk 0:02:48.4]} 3... h6 {[%clk 0:02:48]} 4.
Bxf6 {[%clk 0:02:47]} 4... Qxf6 {[%clk 0:02:48.9]} 5. c3 {[%clk 0:02:47.2]} 5...
d6 {[%clk 0:02:48.9]} 6. Nbd2 {[%clk 0:02:47.8]} 6... Nd7 {[%clk 0:02:48.8]} 7.
e3 {[%clk 0:02:46.9]} 7... c6 {[%clk 0:02:34]} 8. g3 {[%clk 0:02:42.2]} 8... Qd8
{[%clk 0:02:19.7]} 9. Bg2 {[%clk 0:02:40]} 9... Be7 {[%clk 0:02:10.5]} 10. O-O
{[%clk 0:02:40.5]} 10... O-O {[%clk 0:02:10.9]} 11. a4 {[%clk 0:02:36.3]} 11...
a5 {[%clk 0:02:06.4]} 12. Re1 {[%clk 0:02:33.1]} 12... Qc7 {[%clk 0:02:06.4]}
13. Nc4 {[%clk 0:02:30.9]} 13... Re8 {[%clk 0:02:01.2]} 14. Qc2 {[%clk
0:02:29.6]} 14... Bf8 {[%clk 0:01:42.9]} 15. Rad1 {[%clk 0:02:26.3]} 15... e5
{[%clk 0:01:26.8]} 16. dxe5 {[%clk 0:02:19.4]} 16... dxe5 {[%clk 0:01:17.5]} 17.
Nfd2 {[%clk 0:02:17.7]} 17... Nc5 {[%clk 0:00:58.1]} 18. Ne4 {[%clk 0:02:15.5]}
18... Bg4 {[%clk 0:00:37.8]} 19. Rd2 {[%clk 0:02:08.7]} 19... Rad8 {[%clk
0:00:27.7]} 20. h3 {[%clk 0:01:58]} 20... Be6 {[%clk 0:00:26.6]} 21. Nxc5 {[%clk
0:01:52.6]} 21... Bxc5 {[%clk 0:00:20.9]} 22. b3 {[%clk 0:01:39.7]} 22... Rxd2
{[%clk 0:00:09.4]} 23. Nxd2 {[%clk 0:01:34.7]} 23... Be7 {[%clk 0:00:04]} 24.
Rd1 {[%clk 0:01:26.9]} 24... Rd8 {[%clk 0:00:02.2]} 25. Nc4 {[%clk 0:01:23.6]}
25... Rxd1+ {[%clk 0:00:02.1]} 26. Qxd1 {[%clk 0:01:23.1]} 26... g6 {[%clk
0:00:02.6]} 27. Kh2 {[%clk 0:01:22.2]} 27... h5 {[%clk 0:00:02]} 28. h4 {[%clk
0:01:21.5]} 28... Kg7 {[%clk 0:00:02.5]} 29. Qd3 {[%clk 0:01:13.5]} 29... f5
{[%clk 0:00:02.1]} 30. e4 {[%clk 0:01:11.6]} 30... f4 {[%clk 0:00:02.7]} 31. Bh3
{[%clk 0:01:10.8]} 31... Bf7 {[%clk 0:00:02.7]} 32. Qd7 {[%clk 0:01:04.9]} 32...
Qxd7 {[%clk 0:00:02.8]} 33. Bxd7 {[%clk 0:01:05]} 33... Bd8 {[%clk 0:00:01.9]}
34. Kg2 {[%clk 0:00:57.6]} 34... fxg3 {[%clk 0:00:02.2]} 35. fxg3 {[%clk
0:00:56.9]} 35... Kf6 {[%clk 0:00:03.1]} 36. Kf3 {[%clk 0:00:56.5]} 36... Ke7
{[%clk 0:00:03]} 37. Bc8 {[%clk 0:00:47.3]} 37... b5 {[%clk 0:00:02.5]} 38. Nd2
{[%clk 0:00:31.7]} 38... Kd6 {[%clk 0:00:01.4]} 39. Ke3 {[%clk 0:00:24.8]} 39...
Be7 {[%clk 0:00:01.4]} 40. Kd3 {[%clk 0:00:23.2]} 40... Bd8 {[%clk 0:00:01.6]}
41. Ba6 {[%clk 0:00:16.2]} 41... Kc5 {[%clk 0:00:01.7]} 42. Kc2 {[%clk
0:00:15.6]} 42... Kb6 {[%clk 0:00:01.9]} 43. Bc8 {[%clk 0:00:14.7]} 43... Bf6
{[%clk 0:00:01.6]} 44. Bh3 {[%clk 0:00:14.2]} 44... g5 {[%clk 0:00:01.4]} 45.
hxg5 {[%clk 0:00:12.5]} 45... Bxg5 {[%clk 0:00:02.3]} 46. Bf5 {[%clk 0:00:11.8]}
46... Bxd2 {[%clk 0:00:02]} 47. Kxd2 {[%clk 0:00:10.1]} 47... Bxb3 {[%clk
0:00:02.3]} 48. axb5 {[%clk 0:00:10]} 48... cxb5 {[%clk 0:00:02.9]} 49. Bg6
{[%clk 0:00:10.3]} 49... Kc5 {[%clk 0:00:02.8]} 50. Bxh5 {[%clk 0:00:09.5]}
50... Kd6 {[%clk 0:00:02.8]} 51. g4 {[%clk 0:00:08.2]} 51... Ke7 {[%clk
0:00:02.6]} 52. g5 {[%clk 0:00:08.3]} 52... Bf7 {[%clk 0:00:02.2]} 53. Be2
{[%clk 0:00:06.9]} 53... b4 {[%clk 0:00:02.3]} 54. cxb4 {[%clk 0:00:05.8]} 54...
axb4 {[%clk 0:00:03.2]} 55. Kc2 {[%clk 0:00:05.5]} 55... Kf8 {[%clk 0:00:03.4]}
56. Bg4 {[%clk 0:00:04.6]} 56... Kg7 {[%clk 0:00:03.3]} 57. Bf5 {[%clk
0:00:04.7]} 57... Bc4 {[%clk 0:00:02.8]} 58. Kb2 {[%clk 0:00:04]} 58... Kg8
{[%clk 0:00:02.7]} 59. Kc2 {[%clk 0:00:04.5]} 59... Kf8 {[%clk 0:00:03.1]} 60.
Kb2 {[%clk 0:00:05.2]} 60... Ke7 {[%clk 0:00:03.5]} 61. Kc2 {[%clk 0:00:05.9]}
61... Bg8 {[%clk 0:00:03.7]} 62. Kb2 {[%clk 0:00:06.6]} 62... Kd6 {[%clk
0:00:04.1]} 63. Kc2 {[%clk 0:00:07]} 63... Bc4 {[%clk 0:00:03.8]} 64. Kb2 {[%clk
0:00:07.5]} 64... Kc5 {[%clk 0:00:03.3]} 65. Kc2 {[%clk 0:00:07.8]} 65... Kc6
{[%clk 0:00:02.6]} 66. Kb2 {[%clk 0:00:07.3]} 66... Kc7 {[%clk 0:00:02.2]} 67.
Kc2 {[%clk 0:00:07.5]} 67... Kd8 {[%clk 0:00:02.5]} 68. Kb2 {[%clk 0:00:07.6]}
68... Ke7 {[%clk 0:00:02.9]} 69. Kc2 {[%clk 0:00:08.3]} 69... Be6 {[%clk
0:00:02.4]} 70. Bxe6 {[%clk 0:00:07.3]} 70... Kxe6 {[%clk 0:00:02.8]} 71. Kb3
{[%clk 0:00:07.5]} 71... Kf7 {[%clk 0:00:03.6]} 72. Kxb4 {[%clk 0:00:07.9]}
72... Kg6 {[%clk 0:00:04.4]} 73. Kc5 {[%clk 0:00:08.4]} 73... Kxg5 {[%clk
0:00:05.1]} 74. Kd5 {[%clk 0:00:08.9]} 74... Kf4 {[%clk 0:00:05.4]} 75. Kc4
{[%clk 0:00:08.3]} 75... Kxe4 {[%clk 0:00:06.3]} 76. Kc3 {[%clk 0:00:08.6]}
76... Ke3 {[%clk 0:00:06.4]} 77. Kc2 {[%clk 0:00:07.2]} 77... e4 {[%clk
0:00:06.2]} 78. Kd1 {[%clk 0:00:06.1]} 78... Kf2 {[%clk 0:00:06.6]} 79. Kd2
{[%clk 0:00:05.5]} 79... e3+ {[%clk 0:00:07.5]} 80. Kd3 {[%clk 0:00:06.2]} 80...
e2 {[%clk 0:00:08.4]} 81. Kd4 {[%clk 0:00:06.8]} 81... e1=Q {[%clk 0:00:09.3]}
82. Kd3 {[%clk 0:00:07.1]} 82... Qe3+ {[%clk 0:00:10]} 83. Kc4 {[%clk
0:00:06.5]} 83... Ke2 {[%clk 0:00:10.8]} 84. Kb5 {[%clk 0:00:07.1]} 84... Qd3+
{[%clk 0:00:11.7]} 85. Kb6 {[%clk 0:00:07.6]} 85... Ke3 {[%clk 0:00:12.6]} 86.
Kb7 {[%clk 0:00:07.1]} 86... Qd4 {[%clk 0:00:13.5]} 87. Kc6 {[%clk 0:00:06.8]}
87... Ke4 {[%clk 0:00:14.4]} 88. Kb5 {[%clk 0:00:07]} 88... Qd5+ {[%clk
0:00:15.3]} 89. Kb4 {[%clk 0:00:06.8]} 89... Kd4 {[%clk 0:00:16.2]} 90. Ka4
{[%clk 0:00:06.1]} 90... Qc5 {[%clk 0:00:17.1]} 91. Kb3 {[%clk 0:00:06.3]} 91...
Qc4+ {[%clk 0:00:18]} 92. Kb2 {[%clk 0:00:06.6]} 92... Qc3+ {[%clk 0:00:18.9]}
93. Kb1 {[%clk 0:00:07.1]} 93... Kd3 {[%clk 0:00:19.8]} 94. Ka2 {[%clk
0:00:07.6]} 94... Qb4 {[%clk 0:00:20.7]} 95. Ka1 {[%clk 0:00:07.6]} 95... Kc3
{[%clk 0:00:21.6]} 0-1

[Event "Early-Titled-Tuesday-Blitz-September-12-2023"]
[Site "Chess.com"]
[Date "2023.09.12"]
[Round "2"]
[White "M_One1126"]
[Black "DrVelja"]
[Result "1/2-1/2"]
[WhiteElo "2576"]
[BlackElo "2867"]
[TimeControl "180+1"]
[EndTime "8:20:28 PDT"]
[Termination "Game drawn - insufficient material"]

1. e4 {[%clk 0:03:00.9]} 1... c5 {[%clk 0:02:19]} 2. Nf3 {[%clk 0:02:59.1]} 2...
Nc6 {[%clk 0:02:19.4]} 3. d4 {[%clk 0:02:57.8]} 3... cxd4 {[%clk 0:02:20.3]} 4.
Nxd4 {[%clk 0:02:58.7]} 4... g6 {[%clk 0:02:20.9]} 5. c4 {[%clk 0:02:58.1]} 5...
Bg7 {[%clk 0:02:21.5]} 6. Be3 {[%clk 0:02:58.5]} 6... d6 {[%clk 0:02:21.8]} 7.
Nc3 {[%clk 0:02:55.3]} 7... Qb6 {[%clk 0:02:22.2]} 8. Nb3 {[%clk 0:02:53.9]}
8... Bxc3+ {[%clk 0:02:22.7]} 9. bxc3 {[%clk 0:02:53.4]} 9... Qc7 {[%clk
0:02:23.6]} 10. c5 {[%clk 0:02:48.6]} 10... dxc5 {[%clk 0:02:22.5]} 11. Nxc5
{[%clk 0:02:45.7]} 11... Nf6 {[%clk 0:02:23.1]} 12. f3 {[%clk 0:02:38.4]} 12...
O-O {[%clk 0:02:23.4]} 13. Be2 {[%clk 0:02:37.5]} 13... Rd8 {[%clk 0:02:23.8]}
14. Qa4 {[%clk 0:02:32.7]} 14... b6 {[%clk 0:02:23.2]} 15. Nb3 {[%clk
0:02:27.9]} 15... Ne5 {[%clk 0:02:22.5]} 16. Bd4 {[%clk 0:02:19.6]} 16... Bd7
{[%clk 0:02:20.5]} 17. Qa3 {[%clk 0:02:16.6]} 17... Be6 {[%clk 0:02:09.1]} 18.
O-O {[%clk 0:02:16.3]} 18... Nc4 {[%clk 0:02:01.8]} 19. Qc1 {[%clk 0:02:11.4]}
19... Bd7 {[%clk 0:01:43.1]} 20. Qg5 {[%clk 0:02:09.6]} 20... Nh5 {[%clk
0:01:33.6]} 21. f4 {[%clk 0:01:32.9]} 21... Nf6 {[%clk 0:00:55.5]} 22. Bf3
{[%clk 0:01:23.2]} 22... Rac8 {[%clk 0:00:54]} 23. Kh1 {[%clk 0:01:16.2]} 23...
Ba4 {[%clk 0:00:44.6]} 24. e5 {[%clk 0:01:07.4]} 24... Ne8 {[%clk 0:00:44.2]}
25. f5 {[%clk 0:00:56.8]} 25... Ng7 {[%clk 0:00:41.1]} 26. fxg6 {[%clk
0:00:55.3]} 26... hxg6 {[%clk 0:00:40.3]} 27. Bg4 {[%clk 0:00:54.3]} 27... Bd7
{[%clk 0:00:37]} 28. e6 {[%clk 0:00:48.2]} 28... Bxe6 {[%clk 0:00:36.9]} 29. Qh6
{[%clk 0:00:20.3]} 29... Ne5 {[%clk 0:00:37.4]} 30. Bh3 {[%clk 0:00:15.3]} 30...
Bxh3 {[%clk 0:00:36.3]} 31. Qxh3 {[%clk 0:00:14.7]} 31... Nc6 {[%clk 0:00:31]}
32. Qf3 {[%clk 0:00:06.7]} 32... Nf5 {[%clk 0:00:30.3]} 33. g4 {[%clk
0:00:06.5]} 33... Ncxd4 {[%clk 0:00:28.4]} 34. cxd4 {[%clk 0:00:06.1]} 34... Nd6
{[%clk 0:00:29.1]} 35. Rac1 {[%clk 0:00:06.2]} 35... Qb7 {[%clk 0:00:29.4]} 36.
d5 {[%clk 0:00:05.4]} 36... Rxc1 {[%clk 0:00:30.1]} 37. Rxc1 {[%clk 0:00:05.6]}
37... Ne8 {[%clk 0:00:31]} 38. Rd1 {[%clk 0:00:06]} 38... Nf6 {[%clk 0:00:30.8]}
39. g5 {[%clk 0:00:05]} 39... Rxd5 {[%clk 0:00:30.2]} 40. Rf1 {[%clk 0:00:02.4]}
40... Qc8 {[%clk 0:00:08.5]} 41. gxf6 {[%clk 0:00:02.6]} 41... Rf5 {[%clk
0:00:09.1]} 42. Qg2 {[%clk 0:00:03.1]} 42... Rxf1+ {[%clk 0:00:09.3]} 43. Qxf1
{[%clk 0:00:04]} 43... Qc6+ {[%clk 0:00:10]} 44. Kg1 {[%clk 0:00:04.6]} 44...
exf6 {[%clk 0:00:10.1]} 45. Qg2 {[%clk 0:00:04.9]} 45... Qc7 {[%clk 0:00:09.6]}
46. Qf2 {[%clk 0:00:05]} 46... Kg7 {[%clk 0:00:10]} 47. Nd4 {[%clk 0:00:05.6]}
47... Qe5 {[%clk 0:00:09.2]} 48. Qd2 {[%clk 0:00:05.7]} 48... Qd5 {[%clk
0:00:08.7]} 49. Kf2 {[%clk 0:00:05.2]} 49... b5 {[%clk 0:00:09.2]} 50. Nf3
{[%clk 0:00:05.6]} 50... Qc5+ {[%clk 0:00:09.1]} 51. Kg2 {[%clk 0:00:05.4]}
51... b4 {[%clk 0:00:08.7]} 52. Qb2 {[%clk 0:00:06]} 52... a5 {[%clk 0:00:07.7]}
53. Nd2 {[%clk 0:00:06.7]} 53... Qd5+ {[%clk 0:00:06.5]} 54. Kf2 {[%clk
0:00:07.4]} 54... Qf5+ {[%clk 0:00:06.4]} 55. Ke2 {[%clk 0:00:07.6]} 55... Qh5+
{[%clk 0:00:06.3]} 56. Nf3 {[%clk 0:00:07.5]} 56... Qb5+ {[%clk 0:00:06]} 57.
Kf2 {[%clk 0:00:07.7]} 57... a4 {[%clk 0:00:06.9]} 58. Nd4 {[%clk 0:00:06.7]}
58... Qc5 {[%clk 0:00:07.3]} 59. Ke2 {[%clk 0:00:05.9]} 59... Qe5+ {[%clk
0:00:07.4]} 60. Kd3 {[%clk 0:00:06.2]} 60... Qd6 {[%clk 0:00:06.1]} 61. Kc4
{[%clk 0:00:06.1]} 61... b3 {[%clk 0:00:04.9]} 62. axb3 {[%clk 0:00:05.9]} 62...
axb3 {[%clk 0:00:05.5]} 63. Kxb3 {[%clk 0:00:04.2]} 63... Qe5 {[%clk 0:00:05]}
64. Kc4 {[%clk 0:00:04.1]} 64... Qe4 {[%clk 0:00:04.2]} 65. Qf2 {[%clk
0:00:04.2]} 65... f5 {[%clk 0:00:02.4]} 66. Qf3 {[%clk 0:00:03.4]} 66... Qe5
{[%clk 0:00:02.3]} 67. Qc3 {[%clk 0:00:03.5]} 67... Qc7+ {[%clk 0:00:02.3]} 68.
Kd3 {[%clk 0:00:03.8]} 68... Qxc3+ {[%clk 0:00:02.6]} 69. Kxc3 {[%clk
0:00:04.7]} 69... Kh6 {[%clk 0:00:03.1]} 70. Kd3 {[%clk 0:00:05.2]} 70... Kh5
{[%clk 0:00:04]} 71. Ke3 {[%clk 0:00:05.9]} 71... Kh4 {[%clk 0:00:04.2]} 72. Kf2
{[%clk 0:00:06.3]} 72... Kh3 {[%clk 0:00:04.8]} 73. Kg1 {[%clk 0:00:06]} 73...
f4 {[%clk 0:00:05.7]} 74. Nf3 {[%clk 0:00:06.3]} 74... f6 {[%clk 0:00:04.5]} 75.
Kh1 {[%clk 0:00:06.1]} 75... g5 {[%clk 0:00:04.8]} 76. Kg1 {[%clk 0:00:06.2]}
76... g4 {[%clk 0:00:04.2]} 77. Nd2 {[%clk 0:00:05.7]} 77... g3 {[%clk
0:00:04.1]} 78. hxg3 {[%clk 0:00:05.2]} 78... fxg3 {[%clk 0:00:04.6]} 79. Ne4
{[%clk 0:00:04.5]} 79... f5 {[%clk 0:00:04.7]} 80. Nd2 {[%clk 0:00:02.9]} 80...
f4 {[%clk 0:00:04.4]} 81. Nf3 {[%clk 0:00:03.2]} 81... g2 {[%clk 0:00:05]} 82.
Ne1 {[%clk 0:00:03.1]} 82... Kg3 {[%clk 0:00:05.7]} 83. Nxg2 {[%clk 0:00:03.5]}
83... f3 {[%clk 0:00:06.6]} 84. Ne3 {[%clk 0:00:03.9]} 84... f2+ {[%clk
0:00:07.5]} 85. Kf1 {[%clk 0:00:04.5]} 85... Kf3 {[%clk 0:00:08.4]} 86. Nd1
{[%clk 0:00:05.4]} 86... Ke4 {[%clk 0:00:09.3]} 87. Nxf2+ {[%clk 0:00:06.3]}
1/2-1/2

[Event "Early-Titled-Tuesday-Blitz-September-12-2023"]
[Site "Chess.com"]
[Date "2023.09.12"]
[Round "3"]
[White "lluiss"]
[Black "orestn"]
[Result "1-0"]
[WhiteElo "2176"]
[BlackElo "2402"]
[TimeControl "180+1"]
[EndTime "8:22:31 PDT"]
[Termination "lluiss won by resignation"]

1. Nf3 {[%clk 0:03:00.9]} 1... d5 {[%clk 0:02:49]} 2. d4 {[%clk 0:02:59.1]} 2...
e6 {[%clk 0:02:49.1]} 3. c4 {[%clk 0:02:59.4]} 3... Nf6 {[%clk 0:02:50]} 4. cxd5
{[%clk 0:02:59.6]} 4... exd5 {[%clk 0:02:49.6]} 5. Nc3 {[%clk 0:03:00.2]} 5...
c6 {[%clk 0:02:49.5]} 6. Qc2 {[%clk 0:03:00.6]} 6... Bg4 {[%clk 0:02:45.1]} 7.
Ne5 {[%clk 0:02:57.4]} 7... Be6 {[%clk 0:02:42.2]} 8. Bg5 {[%clk 0:02:54]} 8...
Be7 {[%clk 0:02:41.4]} 9. e3 {[%clk 0:02:53.4]} 9... Nfd7 {[%clk 0:02:41.2]} 10.
Bxe7 {[%clk 0:02:52]} 10... Qxe7 {[%clk 0:02:40.4]} 11. Nxd7 {[%clk 0:02:50.5]}
11... Nxd7 {[%clk 0:02:39.5]} 12. Bd3 {[%clk 0:02:51]} 12... h6 {[%clk
0:02:34.7]} 13. O-O {[%clk 0:02:50.2]} 13... O-O {[%clk 0:02:33.5]} 14. Rab1
{[%clk 0:02:46.5]} 14... a5 {[%clk 0:02:29.3]} 15. Rfc1 {[%clk 0:02:42.4]} 15...
Rfc8 {[%clk 0:02:27.7]} 16. Na4 {[%clk 0:02:39.4]} 16... b5 {[%clk 0:02:26.1]}
17. Nc5 {[%clk 0:02:38.3]} 17... Nxc5 {[%clk 0:02:26.5]} 18. Qxc5 {[%clk
0:02:38.3]} 18... Bd7 {[%clk 0:02:25]} 19. Qxe7 {[%clk 0:02:37.4]} 1-0

[Event "Early-Titled-Tuesday-Blitz-September-12-2023"]
[Site "Chess.com"]
[Date "2023.09.12"]
[Round "3"]
[White "giomar27"]
[Black "SHIVACalypso"]
[Result "1-0"]
[WhiteElo "2280"]
[BlackElo "2464"]
[TimeControl "180+1"]
[EndTime "8:22:42 PDT"]
[Termination "giomar27 won by resignation"]

1. e4 {[%clk 0:03:00.9]} 1... c5 {[%clk 0:02:59.2]} 2. Nf3 {[%clk 0:03:00.4]}
2... d6 {[%clk 0:02:59.7]} 3. d4 {[%clk 0:02:59.8]} 3... cxd4 {[%clk 0:03:00.6]}
4. Nxd4 {[%clk 0:03:00.6]} 4... Nf6 {[%clk 0:03:01.2]} 5. Nc3 {[%clk 0:03:00.7]}
5... a6 {[%clk 0:03:01.9]} 6. Bc4 {[%clk 0:03:00.6]} 6... b5 {[%clk 0:03:00.1]}
7. Bb3 {[%clk 0:03:00.5]} 7... Bb7 {[%clk 0:02:59.7]} 8. O-O {[%clk 0:02:58.4]}
8... g6 {[%clk 0:02:57]} 9. f4 {[%clk 0:02:46.4]} 9... Bg7 {[%clk 0:02:56.3]}
10. e5 {[%clk 0:02:43]} 10... dxe5 {[%clk 0:02:55.3]} 11. fxe5 {[%clk
0:02:42.3]} 11... Nd5 {[%clk 0:02:55.8]} 12. Qf3 {[%clk 0:02:33.5]} 12... O-O
{[%clk 0:02:48.2]} 13. Bxd5 {[%clk 0:02:30.4]} 13... Bxd5 {[%clk 0:02:47]} 14.
Qxd5 {[%clk 0:02:30.5]} 14... Qb6 {[%clk 0:02:46.5]} 15. Be3 {[%clk 0:02:27]}
15... Rd8 {[%clk 0:02:44.9]} 16. Qe4 {[%clk 0:02:25.2]} 16... Nd7 {[%clk
0:02:40]} 17. Nc6 {[%clk 0:02:22.5]} 17... Nc5 {[%clk 0:02:37.6]} 18. Nxd8
{[%clk 0:02:12.9]} 1-0

[Event "Early-Titled-Tuesday-Blitz-September-12-2023"]
[Site "Chess.com"]
[Date "2023.09.12"]
[Round "3"]
[White "FMStan15"]
[Black "Orest_Vovk"]
[Result "0-1"]
[WhiteElo "2068"]
[BlackElo "2532"]
[TimeControl "180+1"]
[EndTime "8:23:06 PDT"]
[Termination "Orest_Vovk won by resignation"]

1. e4 {[%clk 0:03:00.9]} 1... g5 {[%clk 0:02:26.8]} 2. d4 {[%clk 0:02:57.8]}
2... g4 {[%clk 0:02:24.6]} 3. Qxg4 {[%clk 0:02:47.7]} 3... d5 {[%clk 0:02:24.6]}
4. Qe2 {[%clk 0:02:47.8]} 4... dxe4 {[%clk 0:02:24.9]} 5. Qxe4 {[%clk 0:02:48]}
5... Nf6 {[%clk 0:02:25.6]} 6. Qd3 {[%clk 0:02:47.3]} 6... Nc6 {[%clk
0:02:26.1]} 7. c3 {[%clk 0:02:47]} 7... Qd5 {[%clk 0:02:25.6]} 8. Nf3 {[%clk
0:02:46.8]} 8... Bg4 {[%clk 0:02:25.7]} 9. Be2 {[%clk 0:02:46.3]} 9... O-O-O
{[%clk 0:02:25.7]} 10. c4 {[%clk 0:02:43.5]} 10... Qh5 {[%clk 0:02:23]} 11. Be3
{[%clk 0:02:36.4]} 11... e5 {[%clk 0:02:17.7]} 12. d5 {[%clk 0:02:26.2]} 12...
e4 {[%clk 0:02:15.9]} 13. Qd1 {[%clk 0:02:20]} 13... exf3 {[%clk 0:02:14]} 14.
gxf3 {[%clk 0:02:19.7]} 14... Bf5 {[%clk 0:02:06.5]} 15. dxc6 {[%clk 0:02:18.8]}
15... Rxd1+ {[%clk 0:02:04.9]} 0-1